fUSD/lending_fUSD_20260524
["ID","MTS","AMOUNT","RATE_DAILY","PERIOD"]
[422898315,1779592232000,-500.0,0.00021009,2]
[422898314,1779592232000,-500.0,0.00021009,2]
[422898318,1779592232000,-501.88498579,0.00021009,2]
[422898317,1779592232000,-434.05746004,0.00021009,2]
[422898316,1779592232000,-500.0,0.00021009,2]
[422898320,1779592232000,-22777.77865775,0.0002101,2]
[422898319,1779592232000,-500.48354204,0.00021009,2]
[422898321,1779592232000,-87573.91495101,0.0002101,2]
[422898270,1779592232000,-500.0,0.00021009,2]
[422898323,1779592232000,-534.20501834,0.0002101,2]
[422898313,1779592232000,-500.0,0.00021009,2]
[422898299,1779592232000,-500.0,0.00021009,2]
[422898322,1779592232000,-552.3873477,0.0002101,2]
[422898297,1779592232000,-500.0,0.00021009,2]
[422898300,1779592232000,-500.0,0.00021009,2]
[422898271,1779592232000,-500.0,0.00021009,2]
[422898273,1779592232000,-500.0,0.00021009,2]
[422898274,1779592232000,-500.0,0.00021009,2]
[422898276,1779592232000,-500.0,0.00021009,2]
[422898275,1779592232000,-500.0,0.00021009,2]
[422898277,1779592232000,-500.0,0.00021009,2]
[422898279,1779592232000,-500.0,0.00021009,2]
[422898281,1779592232000,-500.0,0.00021009,2]
[422898280,1779592232000,-500.0,0.00021009,2]
[422898285,1779592232000,-500.0,0.00021009,2]
[422898283,1779592232000,-500.0,0.00021009,2]
[422898272,1779592232000,-500.0,0.00021009,2]
[422898284,1779592232000,-500.0,0.00021009,2]
[422898286,1779592232000,-500.0,0.00021009,2]
[422898287,1779592232000,-500.0,0.00021009,2]
[422898288,1779592232000,-500.0,0.00021009,2]
[422898290,1779592232000,-500.0,0.00021009,2]
[422898291,1779592232000,-321.79465513,0.00021009,2]
[422898292,1779592232000,-178.20534487,0.00021009,2]
[422898293,1779592232000,-500.0,0.00021009,2]
[422898289,1779592232000,-500.0,0.00021009,2]
[422898295,1779592232000,-500.0,0.00021009,2]
[422898294,1779592232000,-500.0,0.00021009,2]
[422898282,1779592232000,-500.0,0.00021009,2]
[422898366,1779592238000,-165.40532262,0.00021911,7]
[422898368,1779592238000,-161.38,0.00021918,2]
[422898364,1779592238000,-197.04,0.00021832,2]
[422898360,1779592238000,-420.0,0.00021777,2]
[422898363,1779592238000,-1042.03366296,0.000218,2]
[422898361,1779592238000,-838.19275626,0.000218,2]
[422898362,1779592238000,-1593.56612142,0.000218,2]
[422898357,1779592238000,-1593.56612142,0.000215,2]
[422898365,1779592238000,-500.0,0.000219,2]
[422898367,1779592238000,-5000.0,0.00021918,2]
[422898374,1779592238000,-264.0,0.00022,2]
[422898369,1779592238000,-838.19275626,0.00022,2]
[422898371,1779592238000,-1042.03366296,0.00022,2]
[422898373,1779592238000,-512.0,0.00022,2]
[422898370,1779592238000,-1593.56612142,0.00022,2]
[422898375,1779592238000,-275.0,0.00022,2]
[422898376,1779592238000,-166.0,0.00022,2]
[422898377,1779592238000,-206.70320979,0.00022,3]
[422898378,1779592238000,-500.0,0.00022099,2]
[422898379,1779592238000,-500.0,0.00022099,2]
[422898356,1779592238000,-838.19275626,0.000215,2]
[422898381,1779592238000,-1593.56612142,0.000222,2]
[422898372,1779592238000,-199.0,0.00022,2]
[422898359,1779592238000,-500.0,0.0002176,2]
[422898345,1779592238000,-30434.1206615,0.0002111,2]
[422898354,1779592238000,-2000.0,0.00021339,2]
[422898382,1779592238000,-255.60837119,0.00022221,2]
[422898332,1779592238000,-917433.8282252,0.0002101,2]
[422898335,1779592238000,-759.63,0.0002101,2]
[422898331,1779592238000,-301.86521886,0.0002101,2]
[422898336,1779592238000,-200.0,0.00021033,2]
[422898333,1779592238000,-487.0,0.0002101,2]
[422898334,1779592238000,-487.0,0.0002101,2]
[422898337,1779592238000,-502.0,0.00021041,2]
[422898338,1779592238000,-838.19275626,0.000211,2]
[422898341,1779592238000,-178.47579368,0.000211,2]
[422898339,1779592238000,-1593.56612142,0.000211,2]
[422898342,1779592238000,-112036.1407638,0.0002111,2]
[422898343,1779592238000,-6096.2272683,0.0002111,2]
[422898344,1779592238000,-158.2798652,0.0002111,2]
[422898347,1779592238000,-1045.316206,0.0002111,2]
[422898346,1779592238000,-1454.4248613,0.0002111,2]
[422898348,1779592238000,-5632.3348089,0.0002111,2]
[422898350,1779592238000,-1593.56612142,0.000213,2]
[422898349,1779592238000,-838.19275626,0.000213,2]
[422898351,1779592238000,-1042.03366296,0.000213,2]
[422898353,1779592238000,-254.00184555,0.00021322,2]
[422898352,1779592238000,-197.04,0.00021312,2]
[422898355,1779592238000,-500.0,0.00021339,2]
[422898358,1779592238000,-1042.03366296,0.000215,2]
[422898384,1779592238000,-197.04,0.00022351,2]
[422898340,1779592238000,-1042.03366296,0.000211,2]
[422898385,1779592238000,-280.0,0.00022353,2]
[422898420,1779592238000,-151.0,0.00022719,2]
[422898417,1779592238000,-151.0,0.00022719,2]
[422898422,1779592238000,-151.0,0.00022719,2]
[422898423,1779592238000,-197.04,0.00022871,2]
[422898424,1779592238000,-1593.56612142,0.000229,2]
[422898428,1779592238000,-199.0,0.00023,2]
[422898421,1779592238000,-151.0,0.00022719,2]
[422898426,1779592238000,-814.48,0.00022925,2]
[422898442,1779592238000,-500.0,0.00023086,2]
[422898444,1779592238000,-1593.56612142,0.000231,2]
[422898430,1779592238000,-512.0,0.00023,2]
[422898459,1779592238000,-512.0,0.00024,2]
[422898435,1779592238000,-275.0,0.00023,2]
[422898438,1779592238000,-209878.0,0.00023,2]
[422898440,1779592238000,-151.29220321,0.00023,3]
[422898433,1779592238000,-264.0,0.00023,2]
[422898446,1779592238000,-5530.0,0.000232,3]
[422898448,1779592238000,-5530.0,0.000235,5]
[422898451,1779592238000,-587.0,0.00023712,2]
[422898453,1779592238000,-500.0,0.00023778,2]
[422898455,1779592238000,-597.35443957,0.0002395,2]
[422898457,1779592238000,-199.0,0.00024,2]
[422898387,1779592238000,-500.0,0.00022413,2]
[422898413,1779592238000,-151.0,0.00022719,2]
[422898415,1779592238000,-151.0,0.00022719,2]
[422898436,1779592238000,-166.0,0.00023,2]
[422898418,1779592238000,-151.0,0.00022719,2]
[422898419,1779592238000,-151.0,0.00022719,2]
[422898380,1779592238000,-497.68995271,0.00022099,2]
[422898383,1779592238000,-150.0,0.00022326,2]
[422898386,1779592238000,-1593.56612142,0.000224,2]
[422898388,1779592238000,-436.81674633,0.00022464,2]
[422898391,1779592238000,-151.0,0.00022719,2]
[422898390,1779592238000,-1593.56612142,0.000226,2]
[422898392,1779592238000,-151.0,0.00022719,2]
[422898393,1779592238000,-151.0,0.00022719,2]
[422898395,1779592238000,-151.0,0.00022719,2]
[422898394,1779592238000,-151.0,0.00022719,2]
[422898389,1779592238000,-2110.49105147,0.00022464,2]
[422898412,1779592238000,-151.0,0.00022719,2]
[422898402,1779592238000,-151.0,0.00022719,2]
[422898396,1779592238000,-151.0,0.00022719,2]
[422898398,1779592238000,-151.0,0.00022719,2]
[422898400,1779592238000,-1798.80895525,0.00022719,2]
[422898405,1779592238000,-151.0,0.00022719,2]
[422898407,1779592238000,-151.0,0.00022719,2]
[422898416,1779592238000,-151.0,0.00022719,2]
[422898409,1779592238000,-151.0,0.00022719,2]
[422898411,1779592238000,-151.0,0.00022719,2]
[422898414,1779592238000,-151.0,0.00022719,2]
[422898404,1779592238000,-250.7222345,0.00022719,2]
[422898503,1779592239000,-1355.0,0.00025683,2]
[422898498,1779592239000,-1000.0,0.000256,2]
[422898500,1779592239000,-3935.5767654,0.00025678,2]
[422898508,1779592239000,-150.0,0.0002573,2]
[422898502,1779592239000,-929.516,0.00025683,2]
[422898507,1779592239000,-931.0,0.00025683,2]
[422898495,1779592239000,-155.0,0.00025535,5]
[422898504,1779592239000,-1271.0,0.00025683,2]
[422898501,1779592239000,-3546.0,0.00025683,2]
[422898497,1779592239000,-2110.49105147,0.00025573,2]
[422898505,1779592239000,-150.17,0.00025683,2]
[422898506,1779592239000,-3635.0,0.00025683,2]
[422898510,1779592239000,-645.53,0.00025786,2]
[422898522,1779592239000,-2000.0,0.0002694,2]
[422898511,1779592239000,-315.0,0.000258,2]
[422898509,1779592239000,-1512.94,0.00025786,2]
[422898512,1779592239000,-308.0,0.000258,2]
[422898515,1779592239000,-280.0,0.00026296,2]
[422898514,1779592239000,-620.0,0.00026192,3]
[422898519,1779592239000,-170.78483,0.00026849,14]
[422898520,1779592239000,-198.159317,0.00026849,14]
[422898516,1779592239000,-1832.9781872,0.00026467,2]
[422898518,1779592239000,-620.0,0.00026746,3]
[422898517,1779592239000,-2779.0,0.000267,2]
[422898521,1779592239000,-597.35443957,0.000269,2]
[422898524,1779592239000,-1115.21130847,0.00026989,2]
[422898525,1779592239000,-150.0,0.00027,2]
[422898499,1779592239000,-620.0,0.00025637,2]
[422898513,1779592239000,-420.0,0.0002582,2]
[422898496,1779592239000,-436.81674633,0.00025573,2]
[422898469,1779592239000,-500.0,0.00024139,2]
[422898493,1779592239000,-200.0,0.00025413,2]
[422898467,1779592239000,-2110.49105147,0.00024019,2]
[422898468,1779592239000,-2000.0,0.00024139,2]
[422898461,1779592239000,-264.0,0.00024,2]
[422898466,1779592239000,-436.81674633,0.00024019,2]
[422898462,1779592239000,-275.0,0.00024,2]
[422898464,1779592239000,-166.0,0.00024,2]
[422898523,1779592239000,-500.0,0.0002694,2]
[422898471,1779592239000,-645.53,0.00024174,2]
[422898470,1779592239000,-1512.94,0.00024174,2]
[422898472,1779592239000,-280.0,0.00024324,2]
[422898473,1779592239000,-500.57694666,0.00024491,2]
[422898475,1779592239000,-189.02,0.00024658,2]
[422898474,1779592239000,-161.38,0.00024658,8]
[422898477,1779592239000,-156.64,0.00024658,2]
[422898476,1779592239000,-1000.0,0.00024658,2]
[422898479,1779592239000,-234.49460302,0.00024752,2]
[422898480,1779592239000,-623.58710447,0.00024752,2]
[422898481,1779592239000,-212.0,0.00025,2]
[422898478,1779592239000,-159.37,0.00024658,2]
[422898483,1779592239000,-268.0,0.00025,2]
[422898484,1779592239000,-276.0,0.00025,2]
[422898482,1779592239000,-518.0,0.00025,2]
[422898485,1779592239000,-166.0,0.00025,2]
[422898486,1779592239000,-150.0,0.00025,2]
[422898488,1779592239000,-252.84,0.00025115,2]
[422898489,1779592239000,-151.73,0.00025115,2]
[422898487,1779592239000,-620.0,0.00025082,2]
[422898491,1779592239000,-654.0,0.00025269,10]
[422898492,1779592239000,-156.64,0.00025278,7]
[422898494,1779592239000,-814.48,0.00025472,2]
[422898526,1779592239000,-436.81674633,0.00027128,2]
[422898490,1779592239000,-159.37,0.000252,7]
[422898527,1779592239000,-2110.49105147,0.00027128,2]
[422898563,1779592239000,-1024.3,0.0002755,30]
[422898565,1779592239000,-159.37,0.00027666,7]
[422898564,1779592239000,-209.66271,0.00027597,2]
[422898567,1779592239000,-1211.39,0.00027711,7]
[422898566,1779592239000,-167.09,0.00027695,7]
[422898568,1779592239000,-1024.37,0.00027711,7]
[422898572,1779592239000,-159.37,0.00027782,30]
[422898569,1779592239000,-1204.27,0.00027711,7]
[422898570,1779592239000,-539.42,0.00027711,7]
[422898571,1779592239000,-1024.3,0.00027711,7]
[422898574,1779592239000,-167.09,0.0002784,30]
[422898575,1779592239000,-620.0,0.00027856,4]
[422898573,1779592239000,-209.66271,0.00027797,2]
[422898528,1779592239000,-192.59753173,0.00027162,2]
[422898578,1779592239000,-1204.27,0.00027872,2]
[422898577,1779592239000,-1024.37,0.00027872,2]
[422898579,1779592239000,-539.42,0.00027872,2]
[422898580,1779592239000,-1024.3,0.00027872,2]
[422898582,1779592239000,-202.7,0.000279,2]
[422898584,1779592239000,-209.6627,0.00027997,2]
[422898583,1779592239000,-167.09,0.00027985,2]
[422898581,1779592239000,-159.37,0.00027898,2]
[422898585,1779592239000,-150.0,0.00028,2]
[422898587,1779592239000,-9482.11995479,0.00028,2]
[422898589,1779592239000,-1211.39,0.00028033,30]
[422898586,1779592239000,-150.0,0.00028,2]
[422898588,1779592239000,-159.37,0.00028014,7]
[422898590,1779592239000,-1024.37,0.00028033,30]
[422898591,1779592239000,-1204.27,0.00028033,30]
[422898561,1779592239000,-539.42,0.0002755,30]
[422898562,1779592239000,-159.37,0.0002755,2]
[422898576,1779592239000,-1211.39,0.00027872,2]
[422898560,1779592239000,-1204.27,0.0002755,30]
[422898559,1779592239000,-1024.37,0.0002755,30]
[422898533,1779592239000,-152.0,0.00027357,7]
[422898532,1779592239000,-500.0,0.00027356,7]
[422898530,1779592239000,-620.0,0.00027301,4]
[422898529,1779592239000,-150.0,0.00027252,2]
[422898531,1779592239000,-700.0,0.00027356,7]
[422898535,1779592239000,-1000.0,0.00027397,2]
[422898534,1779592239000,-152.0,0.00027397,7]
[422898537,1779592239000,-1000.0,0.00027397,2]
[422898539,1779592239000,-1000.0,0.00027397,2]
[422898538,1779592239000,-1000.0,0.00027397,2]
[422898540,1779592239000,-1000.0,0.00027397,2]
[422898541,1779592239000,-1000.0,0.00027397,2]
[422898543,1779592239000,-1026.63897664,0.00027397,2]
[422898542,1779592239000,-1000.0,0.00027397,2]
[422898536,1779592239000,-1000.0,0.00027397,2]
[422898544,1779592239000,-209.6627,0.00027397,2]
[422898555,1779592239000,-1132.60764781,0.000275,2]
[422898545,1779592239000,-154.9833366,0.00027397,3]
[422898556,1779592239000,-150.0,0.00027521,2]
[422898557,1779592239000,-1211.39,0.0002755,30]
[422898554,1779592239000,-646.65982734,0.00027491,2]
[422898553,1779592239000,-593.83,0.000274,2]
[422898551,1779592239000,-837.53,0.000274,2]
[422898558,1779592239000,-167.09,0.0002755,2]
[422898549,1779592239000,-22407.6,0.00027397,10]
[422898548,1779592239000,-300.0,0.00027397,2]
[422898550,1779592239000,-162.47,0.000274,2]
[422898546,1779592239000,-1500.0,0.00027397,2]
[422898547,1779592239000,-161.38,0.00027397,31]
[422898552,1779592239000,-500.0,0.000274,2]
[422898612,1779592240000,-539.42,0.00028194,7]
[422898616,1779592240000,-545.0,0.00026746,10]
[422898613,1779592240000,-576.48220776,0.00028194,7]
[422898611,1779592240000,-976.27759109,0.00028194,7]
[422898617,1779592240000,-1066.52994332,0.00027397,10]
[422898618,1779592240000,-503.44057045,0.00027397,10]
[422898625,1779592240000,-155.48591406,0.00028361,2]
[422898620,1779592240000,-14454.85889922,0.00027397,10]
[422898623,1779592240000,-280.0,0.00028267,2]
[422898621,1779592240000,-447.81779224,0.00028194,7]
[422898622,1779592240000,-209.66271,0.00028197,2]
[422898624,1779592240000,-539.42,0.00028355,2]
[422898610,1779592240000,-227.99240891,0.00028194,7]
[422898619,1779592240000,-2648.17058701,0.00027397,10]
[422898609,1779592240000,-1024.37,0.00028194,7]
[422898598,1779592240000,-200.0,0.0002808,2]
[422898608,1779592240000,-539.41,0.00028194,7]
[422898593,1779592240000,-1024.3,0.00028033,30]
[422898596,1779592240000,-200.0,0.0002808,2]
[422898592,1779592240000,-539.42,0.00028033,30]
[422898594,1779592240000,-200.0,0.0002808,2]
[422898595,1779592240000,-200.0,0.0002808,2]
[422898597,1779592240000,-200.0,0.0002808,2]
[422898607,1779592240000,-1211.39,0.00028194,7]
[422898600,1779592240000,-200.0,0.0002808,2]
[422898601,1779592240000,-309.77835106,0.0002808,2]
[422898602,1779592240000,-200.0,0.0002808,2]
[422898604,1779592240000,-1941.40147996,0.0002813,2]
[422898603,1779592240000,-2578.74,0.00028082,7]
[422898606,1779592240000,-159.4,0.0002813,30]
[422898605,1779592240000,-167.1,0.0002813,7]
[422898599,1779592240000,-200.0,0.0002808,2]
[422898633,1779592240000,-156.31272965,0.00028617,7]
[422898628,1779592240000,-209.66271,0.00028397,2]
[422898626,1779592240000,-200.0,0.00028361,2]
[422898629,1779592240000,-620.0,0.00028411,5]
[422898660,1779592240000,-3546.0,0.00028683,2]
[422898659,1779592240000,-2110.49105147,0.00028682,2]
[422898657,1779592240000,-539.42,0.00028677,7]
[422898655,1779592240000,-1266.8597,0.00028624,2]
[422898654,1779592240000,-1601.39,0.00028623,10]
[422898656,1779592240000,-321.48274308,0.00028639,7]
[422898650,1779592240000,-185.08017775,0.00028622,7]
[422898653,1779592240000,-193.28840981,0.00028622,7]
[422898651,1779592240000,-162.82402198,0.00028622,7]
[422898652,1779592240000,-180.19941611,0.00028622,7]
[422898649,1779592240000,-154.10877458,0.00028622,7]
[422898647,1779592240000,-190.47674475,0.00028622,7]
[422898646,1779592240000,-153.32948409,0.00028622,7]
[422898648,1779592240000,-222.65074897,0.00028622,7]
[422898658,1779592240000,-436.81674633,0.00028682,2]
[422898644,1779592240000,-174.93200861,0.00028622,7]
[422898645,1779592240000,-217.43742663,0.00028622,7]
[422898632,1779592240000,-539.42,0.00028516,30]
[422898631,1779592240000,-2501.0,0.00028486,60]
[422898634,1779592240000,-218.8810901,0.00028622,7]
[422898636,1779592240000,-316.28529752,0.00028622,7]
[422898635,1779592240000,-314.63655135,0.00028622,7]
[422898630,1779592240000,-700.0,0.00028452,60]
[422898639,1779592240000,-161.94337938,0.00028622,7]
[422898643,1779592240000,-170.83252108,0.00028622,2]
[422898637,1779592240000,-168.33890023,0.00028622,7]
[422898640,1779592240000,-167.67074886,0.00028622,7]
[422898627,1779592240000,-500.0,0.00028389,2]
[422898642,1779592240000,-254.49387036,0.00028622,7]
[422898641,1779592240000,-163.77684304,0.00028622,7]
[422898638,1779592240000,-236.95321716,0.00028622,7]
[422898694,1779592241000,-163.0,0.00029,2]
[422898706,1779592241000,-287.56704,0.00029226,7]
[422898696,1779592241000,-152.56,0.00029002,2]
[422898695,1779592241000,-152.57,0.00029001,2]
[422898697,1779592241000,-152.56,0.00029003,2]
[422898704,1779592241000,-151.0,0.00029226,7]
[422898700,1779592241000,-287.56704,0.00029226,7]
[422898699,1779592241000,-250.797956,0.000291,10]
[422898701,1779592241000,-287.56704,0.00029226,7]
[422898703,1779592241000,-151.0,0.00029226,7]
[422898702,1779592241000,-287.56704,0.00029226,7]
[422898705,1779592241000,-151.0,0.00029226,7]
[422898698,1779592241000,-687.04,0.000291,7]
[422898715,1779592241000,-299.725609,0.00029226,7]
[422898707,1779592241000,-237.927293,0.00029226,7]
[422898709,1779592241000,-219.535347,0.00029226,7]
[422898714,1779592241000,-151.0,0.00029226,7]
[422898713,1779592241000,-151.0,0.00029226,7]
[422898712,1779592241000,-151.0,0.00029226,7]
[422898710,1779592241000,-151.0,0.00029226,7]
[422898716,1779592241000,-5000.0,0.00029226,2]
[422898718,1779592241000,-5000.0,0.00029226,2]
[422898717,1779592241000,-5000.0,0.00029226,2]
[422898719,1779592241000,-5000.0,0.00029226,2]
[422898721,1779592241000,-1500.0,0.000293,7]
[422898720,1779592241000,-700.0,0.00029274,60]
[422898690,1779592241000,-927.70609289,0.00029,2]
[422898708,1779592241000,-151.0,0.00029226,7]
[422898692,1779592241000,-696.0089865,0.00029,2]
[422898675,1779592241000,-10000.0,0.00029,2]
[422898689,1779592241000,-500.0,0.00029,2]
[422898722,1779592241000,-670.46851618,0.00029499,10]
[422898662,1779592241000,-1271.0,0.00028683,2]
[422898661,1779592241000,-1355.0,0.00028683,2]
[422898666,1779592241000,-150.0,0.00028897,2]
[422898663,1779592241000,-3635.0,0.00028683,2]
[422898667,1779592241000,-100292.37866583,0.000289,7]
[422898665,1779592241000,-539.42,0.00028838,2]
[422898664,1779592241000,-723.99,0.00028683,2]
[422898668,1779592241000,-202.7,0.000289,2]
[422898671,1779592241000,-154.19218727,0.00028997,7]
[422898669,1779592241000,-5389.17993,0.00028925,30]
[422898670,1779592241000,-620.0,0.00028965,6]
[422898672,1779592241000,-3553.56189897,0.00029,2]
[422898687,1779592241000,-178.12,0.00029,2]
[422898674,1779592241000,-10000.0,0.00029,2]
[422898676,1779592241000,-10000.0,0.00029,2]
[422898678,1779592241000,-9459.7,0.00029,2]
[422898679,1779592241000,-151.0,0.00029,2]
[422898673,1779592241000,-10000.0,0.00029,2]
[422898680,1779592241000,-151.0,0.00029,2]
[422898681,1779592241000,-1894.4,0.00029,2]
[422898682,1779592241000,-150.0,0.00029,2]
[422898683,1779592241000,-5000.0,0.00029,2]
[422898684,1779592241000,-5218.447537,0.00029,2]
[422898691,1779592241000,-2578.74,0.00029,7]
[422898688,1779592241000,-200.0,0.00029,10]
[422898685,1779592241000,-1000.0,0.00029,2]
[422898686,1779592241000,-712.06583686,0.00029,120]
[422898677,1779592241000,-3226.0,0.00029,2]
[422898724,1779592241000,-1933.46344353,0.000295,40]
[422898693,1779592241000,-251.89759263,0.00029,2]
[422898726,1779592241000,-6316.41762903,0.000295,40]
[422898755,1779592241000,-359.985689,0.000295,7]
[422898759,1779592241000,-220.167232,0.000295,7]
[422898760,1779592241000,-220.167232,0.000295,7]
[422898758,1779592241000,-220.167232,0.000295,7]
[422898762,1779592241000,-151.0,0.000295,7]
[422898761,1779592241000,-220.167232,0.000295,7]
[422898763,1779592241000,-151.0,0.000295,7]
[422898765,1779592241000,-488.54315,0.000295,7]
[422898764,1779592241000,-488.54315,0.000295,7]
[422898766,1779592241000,-488.54315,0.000295,7]
[422898767,1779592241000,-488.54315,0.000295,7]
[422898768,1779592241000,-151.0,0.000295,7]
[422898770,1779592241000,-203.00566,0.000295,7]
[422898752,1779592241000,-359.985689,0.000295,7]
[422898769,1779592241000,-151.0,0.000295,7]
[422898771,1779592241000,-203.00566,0.000295,7]
[422898773,1779592241000,-203.00566,0.000295,7]
[422898775,1779592241000,-151.0,0.000295,7]
[422898776,1779592241000,-151.0,0.000295,7]
[422898774,1779592241000,-158.121711,0.000295,7]
[422898777,1779592241000,-246.718065,0.000295,7]
[422898778,1779592241000,-151.0,0.000295,7]
[422898779,1779592241000,-151.0,0.000295,7]
[422898782,1779592241000,-216.720215,0.000295,7]
[422898781,1779592241000,-151.0,0.000295,7]
[422898780,1779592241000,-179.950147,0.000295,7]
[422898784,1779592241000,-2009.511163,0.000295,7]
[422898783,1779592241000,-2009.511163,0.000295,7]
[422898772,1779592241000,-203.00566,0.000295,7]
[422898757,1779592241000,-174.579304,0.000295,7]
[422898723,1779592241000,-563.87108169,0.00029499,10]
[422898753,1779592241000,-359.985689,0.000295,7]
[422898754,1779592241000,-359.985689,0.000295,7]
[422898727,1779592241000,-7537.13229809,0.000295,40]
[422898729,1779592241000,-9860.55385662,0.000295,40]
[422898730,1779592241000,-10338.96672537,0.000295,40]
[422898725,1779592241000,-4735.29787081,0.000295,40]
[422898728,1779592241000,-8088.48574277,0.000295,40]
[422898731,1779592241000,-11632.62197047,0.000295,40]
[422898732,1779592241000,-2763.44645712,0.000295,40]
[422898733,1779592241000,-6798.24098741,0.000295,40]
[422898735,1779592241000,-10833.03551771,0.000295,40]
[422898737,1779592241000,-13675.64557024,0.000295,40]
[422898740,1779592241000,-18476.14999929,0.000295,40]
[422898736,1779592241000,-11167.57884199,0.000295,40]
[422898742,1779592241000,-21199.84575502,0.000295,40]
[422898734,1779592241000,-8659.51211383,0.000295,40]
[422898738,1779592241000,-14867.83004801,0.000295,40]
[422898739,1779592241000,-16183.7122985,0.000295,40]
[422898748,1779592241000,-151.0,0.000295,7]
[422898750,1779592241000,-151.0,0.000295,7]
[422898751,1779592241000,-152.001945,0.000295,7]
[422898749,1779592241000,-151.0,0.000295,7]
[422898746,1779592241000,-151.0,0.000295,7]
[422898756,1779592241000,-151.0,0.000295,7]
[422898785,1779592241000,-178.997904,0.000295,7]
[422898747,1779592241000,-151.0,0.000295,7]
[422898744,1779592241000,-151.0,0.000295,7]
[422898743,1779592241000,-163.110918,0.000295,7]
[422898741,1779592241000,-18691.77902676,0.000295,40]
[422898745,1779592241000,-151.0,0.000295,7]
[422898832,1779592242000,-246.284466,0.000295,7]
[422898834,1779592242000,-151.0,0.000295,7]
[422898833,1779592242000,-1259.070601,0.000295,7]
[422898828,1779592242000,-1259.070601,0.000295,7]
[422898824,1779592242000,-183.774921,0.000295,7]
[422898811,1779592242000,-347.219233,0.000295,7]
[422898823,1779592242000,-151.0,0.000295,7]
[422898821,1779592242000,-156.484834,0.000295,7]
[422898822,1779592242000,-156.484834,0.000295,7]
[422898814,1779592242000,-151.0,0.000295,7]
[422898826,1779592242000,-151.0,0.000295,7]
[422898825,1779592242000,-151.0,0.000295,7]
[422898830,1779592242000,-151.0,0.000295,7]
[422898847,1779592242000,-246.284466,0.000295,7]
[422898831,1779592242000,-152.863503,0.000295,7]
[422898827,1779592242000,-151.0,0.000295,7]
[422898836,1779592242000,-152.863503,0.000295,7]
[422898835,1779592242000,-227.768408,0.000295,7]
[422898837,1779592242000,-1259.070601,0.000295,7]
[422898839,1779592242000,-151.0,0.000295,7]
[422898840,1779592242000,-152.863503,0.000295,7]
[422898838,1779592242000,-246.284466,0.000295,7]
[422898842,1779592242000,-358.44569,0.000295,7]
[422898841,1779592242000,-233.043787,0.000295,7]
[422898844,1779592242000,-152.863503,0.000295,7]
[422898843,1779592242000,-1259.070601,0.000295,7]
[422898820,1779592242000,-156.484834,0.000295,7]
[422898829,1779592242000,-151.0,0.000295,7]
[422898818,1779592242000,-156.484834,0.000295,7]
[422898802,1779592242000,-151.0,0.000295,7]
[422898813,1779592242000,-1486.043557,0.000295,7]
[422898848,1779592242000,-358.44569,0.000295,7]
[422898793,1779592242000,-356.944058,0.000295,7]
[422898789,1779592242000,-2083.294218,0.000295,7]
[422898786,1779592242000,-2009.511163,0.000295,7]
[422898792,1779592242000,-2083.294218,0.000295,7]
[422898794,1779592242000,-2083.294218,0.000295,7]